Cogmind - Beta 13 @@@ ROGUE MODE // 2024.04.06 @ 20:17:59 Player: DURANDAL Result: Destroyed by S-10 Pest with Light Assault Rifle Performance ------------- Evolutions (0) 0 Regions Visited (4) 800 Robots Destroyed (23) 115 Value Destroyed (364) 364 Prototype IDs (0) 0 Alien Tech Used (0) 0 Bonus (273) 273 TOTAL SCORE: 1552 Bonus ------- Aligned with FarCom 300 Friendly Fire -27 Cogmind --------- Core Integrity 0/250 Matter 290/300 Energy 250/250 System Corruption 0% Temperature Cool (0) Movement Walking (260) Ox2 Location -9/Mines Parts ------- > --- POWER (1) -------- Ion Engine > --- PROPULSION (2) --- Aluminum Leg Aluminum Leg > --- UTILITY (2) ------ High-capacity Storage Unit Weapon Shielding > --- WEAPON (2) ------- Light Assault Rifle Light Assault Rifle > --- INVENTORY (20) --- Light Ion Engine Aluminum Leg Aluminum Leg Small Storage Unit Huge Storage Unit Medium Matter Pod (100) Terrain Scanner Terrain Scanner Targeting Computer Targeting Computer Kinecellerator Utility Shielding Utility Shielding Supersonic Drone Bay Flak Gun Light Cannon Light Cannon Grenade Launcher Mining Laser Peak State ------------ > --- POWER ------------ Ion Engine > --- PROPULSION ------- Aluminum Leg Aluminum Leg > --- UTILITY ---------- High-capacity Storage Unit Weapon Shielding > --- WEAPON ----------- Light Assault Rifle Light Assault Rifle > --- INVENTORY -------- Light Ion Engine Aluminum Leg Aluminum Leg Small Storage Unit Huge Storage Unit Medium Matter Pod Terrain Scanner Terrain Scanner Targeting Computer Targeting Computer Kinecellerator Utility Shielding Utility Shielding Supersonic Drone Bay Flak Gun Light Cannon Light Cannon Grenade Launcher Mining Laser Mining Laser [Rating: 10] Favorites ----------- Power Ion Engine Engine Ion Engine Propulsion Aluminum Leg Leg Aluminum Leg Utility High-capacity Storage Unit Storage High-capacity Storage Unit Protection Weapon Shielding Weapon Light Assault Rifle Ballistic Gun Light Assault Rifle Build | -11 -10 -10 -10 -9 ------- Run | Yrd Mat Min Exi Min Slots Evolved . | . . . . . Power . | . . . . . Propulsion . | . . . . . Utility . | . . . . . Weapon . | . . . . . Parts Attached 15 | 6 9 . . . Power 3 | 1 2 . . . Engine 3 | 1 2 . . . Core . | . . . . . Reactor . | . . . . . Propulsion 5 | 2 3 . . . Treads . | . . . . . Leg 5 | 2 3 . . . Wheel . | . . . . . Hover . | . . . . . Flight . | . . . . . Utility 3 | 1 2 . . . Device . | . . . . . Storage 2 | 1 1 . . . Processor . | . . . . . Hackware . | . . . . . Protection 1 | . 1 . . . Artifact . | . . . . . Weapon 4 | 2 2 . . . Energy Gun . | . . . . . Energy Cannon . | . . . . . Ballistic Gun 4 | 2 2 . . . Ballistic Cannon . | . . . . . Launcher . | . . . . . Special Weapon . | . . . . . Impact Weapon . | . . . . . Slashing Weapon . | . . . . . Piercing Weapon . | . . . . . Special Melee Weapon . | . . . . . Unidentified Prototypes . | . . . . . Parts Lost 5 | . 5 . . . Power 1 | . 1 . . . Propulsion 2 | . 2 . . . Utility . | . . . . . Weapon 2 | . 2 . . . Highest Loss Streak 3 | . 3 . . . To Critical Strikes . | . . . . . Average Slot Usage (%) 97 | . 94 100 100 100 Engine 13 | . 13 14 14 14 Leg 27 | . 27 28 28 28 Storage 14 | . 14 14 14 14 Protection 12 | . 10 14 14 14 Ballistic Gun 27 | . 27 28 28 28 Naked Turns . | . . . . . Heaviest Build 49 | 14 49 48 48 48 Greatest Support 20 | 20 20 20 20 20 Greatest Overweight (x) 2 | . 2 2 2 2 Average Overweight (x) 1 | . 1 2 2 2 Largest Inventory Capacity 20 | 8 20 20 20 20 Average Capacity 19 | 6 19 20 20 20 Most Carried 20 | 5 17 17 18 20 Average Carried 13 | 1 8 17 17 19 Final Capacity 20 | 8 20 20 20 20 Final Carried 19 | 1 17 17 18 19 Class Distribution -------------------- 86% | Scavenger-Mutant 13% | Mutant Dominant Class ---------------- Scavenger-Mutant | -10/Materials Scavenger-Mutant | -10/Mines Scavenger-Mutant | -10/Exiles Scavenger-Mutant | -9/Mines Resources | -11 -10 -10 -10 -9 ----------- Run | Yrd Mat Min Exi Min Matter Collected 715 | 260 412 27 . 16 Remotely . | . . . . . Salvage Created 597 | . 508 27 . 62 Parts 40 | . 30 2 . 8 Haulers Intercepted 2 | . 2 . . . Recyclers Shooed 2 | . 2 . . . Parts Field Recycled . | . . . . . Retrieved Matter . | . . . . . Parts Self-Destructed . | . . . . . Prevented . | . . . . . Kills | -11 -10 -10 -10 -9 ------- Run | Yrd Mat Min Exi Min Combat Hostiles Destroyed 18 | . 12 2 . 4 Guns 18 | . 12 2 . 4 Classes Destroyed 6 | . 6 . . . Worker 1 | . 1 . . . Hauler 2 | . 2 . . . Recycler 1 | . 1 . . . Operator 1 | . 1 . . . Swarmer 12 | . 6 2 . 4 Grunt 6 | . 6 . . . Best Kill Streak 3 | . 3 2 . 3 Combat Bots Only 3 | . 2 2 . 3 Max Kills in Single Turn 2 | . 1 1 . 2 Gunslinging 1 | . . . . 1 Exploded . | . . . . . Melee . | . . . . . Uniques/NPCs Destroyed . | . . . . . Combat | -11 -10 -10 -10 -9 -------- Run | Yrd Mat Min Exi Min Hostile Shots Fired 158 | . 116 10 . 32 Missed 40 | . 27 2 . 11 Damage Taken 1131 | . 866 63 . 202 Core 253 | . 145 18 . 90 Absorbed by Shields . | . . . . . Redirected to Shielding 32 | . 15 11 . 6 Core Remaining (%) 100 | 100 . . . . Volleys Fired 112 | . 95 4 . 13 Largest 2 | . 2 2 . 2 Hottest 40 | . 40 40 . 40 Shots Fired 192 | . 158 8 . 26 Gun 192 | . 158 8 . 26 Cannon . | . . . . . Launcher . | . . . . . Special . | . . . . . Kinetic 192 | . 158 8 . 26 Thermal . | . . . . . Explosive . | . . . . . Electromagnetic . | . . . . . Robot Hit Streak 10 | . 10 2 . 4 Robot Miss Streak 6 | . 5 2 . 6 Penetration Max . | . . . . . Secondary Targets 2 | . . 1 . 1 Max Gunslinging Chain 1 | . . 1 . 1 Shots Hit Robots 116 | . 98 4 . 14 Core Hits 42 | . 33 3 . 6 Critical Kills 1 | . 1 . . . Critical Parts Destroyed 1 | . 1 . . . Critical Strikes 2 | . 2 . . . Destroy 2 | . 2 . . . Melee Attacks . | . . . . . Impact . | . . . . . Slashing . | . . . . . Piercing . | . . . . . Sneak Attacks . | . . . . . Combat Hostiles . | . . . . . Follow-up Attacks . | . . . . . Damage Inflicted 1037 | . 882 29 . 126 Guns 1037 | . 882 29 . 126 Cannons . | . . . . . Explosions . | . . . . . Melee . | . . . . . Ramming . | . . . . . Kinetic 1037 | . 882 29 . 126 Thermal . | . . . . . Explosive . | . . . . . Electromagnetic . | . . . . . Impact . | . . . . . Slashing . | . . . . . Piercing . | . . . . . Highest Corruption . | . . . . . Average Corruption . | . . . . . Corruption Purged . | . . . . . Corruption Blocked . | . . . . . Overload Shots . | . . . . . Overflow Damage . | . . . . . Projectiles . | . . . . . Explosions . | . . . . . Melee . | . . . . . Knockbacks . | . . . . . Impact . | . . . . . Kinetic . | . . . . . Secondary . | . . . . . Self-Inflicted Damage . | . . . . . Shots . | . . . . . Rammed . | . . . . . Targets Rammed . | . . . . . Kicked . | . . . . . Crushed . | . . . . . Highest Temperature 12 | . 12 . . . Average Temperature 6 | . 6 . . . Received Heat Transfer 282 | . 282 . . . Siege Activations . | . . . . . Robots Corrupted . | . . . . . Combat Hostiles . | . . . . . Parts Fried . | . . . . . Impact Corruptions . | . . . . . Robots Melted . | . . . . . Combat Hostiles . | . . . . . Parts Melted . | . . . . . Heat Transferred . | . . . . . Parts Sabotaged . | . . . . . Parts Stolen . | . . . . . Parts Stripped . | . . . . . Power Chain Reactions . | . . . . . Alert | -11 -10 -10 -10 -9 ------- Run | Yrd Mat Min Exi Min Peak Influence 250 | . 250 50 . 96 Initial . | . . . . . Average 42 | . 55 20 . 38 Maximum Alert Level 1 | . 1 . . . Low Security (%) 96 | 100 94 100 . 100 Level 1 3 | . 5 . . . Level 2 . | . . . . . Level 3 . | . . . . . Level 4 . | . . . . . Level 5 . | . . . . . High Security . | . . . . . Max Security . | . . . . . Squads Dispatched 1 | . 1 . . . Investigation . | . . . . . Extermination . | . . . . . Reinforcement 1 | . 1 . . . Assault . | . . . . . Garrison . | . . . . . Intercept . | . . . . . Searches Triggered . | . . . . . Construction Impeded . | . . . . . Haulers Reinforced . | . . . . . Active Scanning Responses . | . . . . . Cargo Convoy Interrupts . | . . . . . Stealth | -11 -10 -10 -10 -9 --------- Run | Yrd Mat Min Exi Min Distress Signals 3 | . 3 . . . Communications Jammed . | . . . . . Distress Signals . | . . . . . Times Spotted 37 | . 28 3 . 6 Peak Tracking Total 5 | . 5 3 . 3 Tactical Retreats 3 | . 3 . . . Traps | -11 -10 -10 -10 -9 ------- Run | Yrd Mat Min Exi Min Traps Triggered . | . . . . . Indirectly . | . . . . . Trap Hack Attempts . | . . . . . Triggered . | . . . . . Disarmed . | . . . . . Reprogrammed . | . . . . . Reused . | . . . . . Traps Extracted . | . . . . . Installed . | . . . . . Triggered . | . . . . . Machines | -11 -10 -10 -10 -9 ---------- Run | Yrd Mat Min Exi Min Machines Disabled . | . . . . . Max in Single Turn . | . . . . . Machines Repaired . | . . . . . Machines Dismantled . | . . . . . Machines Sabotaged . | . . . . . Overloaded Fab Kills . | . . . . . Hacking | -11 -10 -10 -10 -9 --------- Run | Yrd Mat Min Exi Min Machines Accessed 4 | . 3 . . 1 Terminals 2 | . 2 . . . Fabricators . | . . . . . Repair Stations . | . . . . . Recycling Units 1 | . 1 . . . Scanalyzers . | . . . . . Garrison Access . | . . . . . Total Hacks 7 | . 6 . . 1 Successful 4 | . 3 . . 1 Failed 3 | . 3 . . . Catastrophic . | . . . . . Database Lockouts . | . . . . . Manual 1 | . . . 1 . Terminals 3 | . 3 . . . Fabricators . | . . . . . Repair Stations . | . . . . . Recycling Units 3 | . 3 . . . Scanalyzers . | . . . . . Garrison Access . | . . . . . Terminal Hacks 3 | . 2 . . 1 Open Door 1 | . . . . 1 Hauler Manifests 1 | . 1 . . . Zone Layout 1 | . 1 . . . Fabricator Hacks . | . . . . . Repair Station Hacks . | . . . . . Recycling Unit Hacks 1 | . 1 . . . Report Inventory 1 | . 1 . . . Scanalyzer . | . . . . . Garrison Access Hacks . | . . . . . Unauthorized Hacks . | . . . . . Terminals . | . . . . . Fabricators . | . . . . . Repair Stations . | . . . . . Recycling Units . | . . . . . Scanalyzers . | . . . . . Garrison Access . | . . . . . Data Cores Recovered . | . . . . . Used . | . . . . . Hacking Detections 1 | . 1 . . . Full Trace Events . | . . . . . Feedback Events . | . . . . . Feedback Blocked . | . . . . . Robot Schematics Acquired . | . . . . . Robots Built . | . . . . . Authchips . | . . . . . Time . | . . . . . Total Robot Build Rating . | . . . . . Part Schematics Acquired . | . . . . . Parts Built . | . . . . . Authchips . | . . . . . Time . | . . . . . Total Part Build Rating . | . . . . . Parts Repaired . | . . . . . Time . | . . . . . Parts Recycled . | . . . . . Recycled Matter . | . . . . . Retrieved Matter . | . . . . . Retrieved Components . | . . . . . Parts Scanalyzed . | . . . . . Part Schematics Acquired . | . . . . . Parts Damaged . | . . . . . Bothacking | -11 -10 -10 -10 -9 ------------ Run | Yrd Mat Min Exi Min Used RIF Installer . | . . . . . Robots Hacked . | . . . . . Non-combat . | . . . . . Combat . | . . . . . Robot Hacks Applied . | . . . . . Relay Couplers Released . | . . . . . Fabnet Peak Effective % . | . . . . . Robots Rewired . | . . . . . Allies Hacked . | . . . . . Hacks Repelled . | . . . . . Allies | -11 -10 -10 -10 -9 -------- Run | Yrd Mat Min Exi Min Total Allies 3 | . . 2 . 1 Largest Group 2 | . . 2 2 1 Highest-Rated Group 56 | . . 56 56 31 Highest-Rated Ally 31 | . . 31 31 31 Total Orders . | . . . . . Ally Attacks 8 | . . . . 8 Total Damage 42 | . . . . 42 Kills 1 | . . . . 1 Allies Corrupted . | . . . . . Allies Melted . | . . . . . Intel | -11 -10 -10 -10 -9 ------- Run | Yrd Mat Min Exi Min Robot Analysis Total . | . . . . . Derelict Logs Recovered 2 | . . 1 . 1 Drone Launches . | . . . . . Drone Recoveries . | . . . . . Exploration | -11 -10 -10 -10 -9 ------------- Run | Yrd Mat Min Exi Min Turns Passed 3483 | 61 1680 851 554 337 Spaces Moved 1270 | 48 570 323 213 116 Core 14 | 14 . . . . Treads . | . . . . . Legs 1256 | 34 570 323 213 116 Wheels . | . . . . . Hover . | . . . . . Flight . | . . . . . Fastest Speed 50 | 50 120 260 260 260 Average Speed 247 | 99 245 260 260 260 Slowest Speed 260 | 120 260 260 260 260 Overloaded Moves . | . . . . . Propulsion Burnouts . | . . . . . Robots Hopped . | . . . . . Cave-ins Triggered . | . . . . . Exploration Rate (%) 46 | 3 84 71 60 13 Regions Visited 4 Branch Regions 3 Pre-discovered Areas . | . . . . . Known Exits Taken 1 | . . 1 . . Unknown Exits Taken 3 | 1 1 . 1 . Scrap Searched . | . . . . . Spaces Dug . | . . . . . Terrain Destroyed . | . . . . . Melee . | . . . . . Projectile . | . . . . . AOE . | . . . . . Terrain Rammed . | . . . . . Walls Destroyed . | . . . . . Machines Disabled . | . . . . . Actions | -11 -10 -10 -10 -9 --------- Run | Yrd Mat Min Exi Min Total 1451 | 61 715 329 214 132 Wait 23 | 1 18 3 1 . Move 1266 | 47 569 322 212 116 Hop . | . . . . . Pick Up 32 | 7 22 . 1 2 Fast Attach . | . . . . . Attach 14 | 6 8 . . . Detach 2 | . 2 . . . Swap 1 | . 1 . . . Drop 1 | . . . . 1 Fire 112 | . 95 4 . 13 Melee . | . . . . . Ram . | . . . . . Kick . | . . . . . Crush . | . . . . . Escape Stasis . | . . . . . Rewire . | . . . . . Trap . | . . . . . Miscellaneous . | . . . . . Route ------- -11/Scrapyard -10/Materials (discovered 4 exits: [*Mat x3] / *Min) -10/Mines (discovered 3 exits: [*Mat x2] / *Exi) -10/Exiles -9/Mines History --------- Turn | Location | Event 5 | -11/Scrapyard | Discovered new exit (range 15) 62 | -11/Scrapyard | Entered Materials 307 | -10/Materials | Build established: Mutant 433 | -10/Materials | Lost 3 parts (2n1w) 730 | -10/Materials | Discovered new exit (range 4) 765 | -10/Materials | Build established: Scavenger-Mutant 913 | -10/Materials | Core integrity fell below 50% 1013 | -10/Materials | Discovered new exit (range 13) 1314 | -10/Materials | Discovered new exit (range 4) 1686 | -10/Materials | Discovered new exit (range 16) 1742 | -10/Materials | Entered Mines 1743 | -10/Mines | Assembled infested the area 1776 | -10/Mines | Identified exit to Exiles 1820 | -10/Mines | Discovered new exit (range 6) 2362 | -10/Mines | Discovered new exit (range 5) 2593 | -10/Mines | Entered Exiles 2593 | -10/Exiles | Accompanied by 2 allies 2623 | -10/Exiles | Led the pair of lost Derelicts to a safe place 2657 | -10/Exiles | Met 8R-AWN 2704 | -10/Exiles | Met EX-HEX 2779 | -10/Exiles | Met EX-BIN 2810 | -10/Exiles | Aligned with FarCom system 2813 | -10/Exiles | Given EX-Vault access code 2873 | -10/Exiles | Opened EX-Vault 2888 | -10/Exiles | Found Prototype Device 2946 | -10/Exiles | Warned to stay clear of 0b10 Research branches 3027 | -10/Exiles | Met EX-DEC 3113 | -10/Exiles | Discovered new exit (range 14) 3147 | -10/Exiles | Left Exiles lab with Supersonic Drone Bay 3147 | -10/Exiles | Entered Mines 3161 | -9/Mines | Met a Derelict who couldn't figure out how to use a Trap Extractor 3293 | -9/Mines | Core integrity fell below 20% 3343 | -9/Mines | Escorted by a lone wolf Derelict 3484 | -9/Mines | Destroyed by S-10 Pest with Light Assault Rifle Last Messages --------------- 03161_ An explosion rips through the floor. 03161_ Machine disabled. 03173_ Acquired Kinecellerator. 03177_ Acquired Flak Gun. 03288_ S-10 Pest: "SECOND INTRUDER APPROACHING. ELIMINATE." 03298_ S-10 Pest destroyed. 03305_ Switching to secondary target: S-10 Pest. 03305_ S-10 Pest destroyed. 03308_ Acquired 15 matter. 03313_ Acquired 1 matter. 03316_ Dropped Mining Laser. 03343_ A derelict emerges from the shadows: "Nice work disposing of those Unaware! I'm happy to return the favor and help see you out of these parts." 03448_ K-01 Serf collects debris. 03472_ K-01 Serf suffers critical hit (Burn). 03472_ K-01 Serf destroyed. 03475_ S-10 Pest destroyed. Map ----- +----------------------------------------------------+ | | | | | ???????????????????????????????????? | | ???????????????????????????????????? | | ????########???????????????????????? | | ????#""" ""#???????????????????????? | | ????#! * !#???????????????????????? | | ????# ! ##???????????????????????? | | ????##! ! ####????????????????????? | | ????### # ####?????????????????? | | ????# X #?????????????????? | | ????# ### #?????????????????? | | ???## ##?????????????????????? | | ???# ###??????????????????????? | | ???# ##????????????????????????? | | ???## ###?????????????????????????? | | ????## #???????????????????????????? | | ?????# #???????????????????????????? | | ?????# #???????????????????????????? | | ?????# #???????????????????????????? | | ?????# #???????????????????????????? | | ??#### #?????###???????????????????? | | ??# ###### ##??????= ?????????? | | ??# ## ####% %s ????????? | | ??# ##### *%[% ????????? | | ??# #???# @ g ==[%= ????????? | | ??# #???## ### ??????????? | | ??# #????#### ##?????????????????? | | ??# #???????? ##??????????????????? | | ??# #????????? ??????????????????? | | ??# #??????????###?????????????????? | | ??# #??????????????????????????????? | | ??# #??????????????????????????????? | | ??# #??????????????????????????????? | | ??# #??????????????????????????????? | | ??# #??????????????????????????????? | | ??# #??????????????????????????????? | | ??# #??????????????????????????????? | | ??#*#??????????????????????????????? | | ??#%#??????????????????????????????? | | ??#*#??????????????????????????????? | | ??#|#??????????????????????????????? | | ??#=#??????????????????????????????? | | ??#%#??????????????????????????????? | | ??#=#??????????????????????????????? | | ??#[#??????????????????????????????? | | ??# ##?????????????????????????????? | | ??# ##????????????????????????????? | | ?## #????????????????????????????? | | ?# ##???????????????????????????? | +----------------------------------------------------+ Best States ------------- Heat Dissipation 25 Energy Generation 10 Energy Capacity 250 Matter Stores 300 Matter Capacity 300 Sight Range 16 Terrain Scan Density 10 Weapon Shielding 33 Evasion (%) 55 Item Schematics ----------------- None Robot Schematics ------------------ None Fabricated ------------ Nothing Alien Tech Used ----------------- None Achievements -------------- None Challenges ------------ None Game ------ Seed AccelerationModifiedStripper Manual? 0 Play Time 00:19:50 Cumulative 8.5 hours Start 2024.04.06 @ 19:59:13 End 2024.04.06 @ 20:17:59 Sessions 1 Manual Loads 0 Difficulty Rogue Special Mode None Game No. 16 Rogue 16 Adventurer 0 Explorer 0 Win Type - Total 0 Types 0/0/0/0/0/0/0/0/0 Lore% 14 Gallery% 11 Achievement% 13 Wizard Run 0 Options --------- Layout 1 ASCII 0 Keyboard 0 Movement Numpad Keybinds 0 Fullscreen 1 Font 24/Smallcaps Map View 50x35 Zoom Use 0% Tactical HUD 1 Map Filters NONE Filters NONE Steam 1 RUN: 0344f617-c289-4b3c-b211-26aec88d18ca